bitfinex/quotes_ETHUSD_20240820
["timestamp","ask_amount","ask_price","bid_price","bid_amount"]
[1724117875620,3.7624,2657.9,2657.3,0.55959944]
[1724117875943,3.7624,2657.9,2657.2,2.3247]
[1724117876509,3.0,2657.8,2657.2,2.3247]
[1724117877448,6.76251,2657.8,2657.2,2.3247]
[1724117877963,3.0,2657.8,2657.2,2.3247]
[1724117878114,3.0,2657.9,2657.2,2.3247]
[1724117878733,6.10421,2657.8,2657.2,2.3247]
[1724117878931,9.8668,2657.8,2657.2,2.3247]
[1724117879134,6.10421,2657.8,2657.2,2.3247]
[1724117879540,9.86679,2657.8,2657.2,2.3247]
[1724117879741,9.8668,2657.8,2657.2,2.3247]
[1724117879946,9.86681,2657.8,2657.2,2.3247]
[1724117880147,3.666003,2657.8,2656.9,10.12895263]
[1724117880453,3.0,2657.9,2656.6,13.82839369]
[1724117880454,3.76365,2657.0,2656.6,2.3345]
[1724117880823,7.5269,2657.2,2656.6,2.3345]
[1724117881030,3.76343,2657.2,2656.6,2.3345]
[1724117881348,6.02794,2657.4,2656.6,2.3345]
[1724117881551,2.2648,2657.4,2656.7,1.7385148]
[1724117881711,3.0,2657.5,2656.7,2.39278806]
[1724117881921,2.3205,2657.8,2656.9,2.461]
[1724117882136,9.08302,2657.8,2657.0,3.2714647]
[1724117882348,3.76287,2657.6,2656.9,4.42381866]
[1724117882569,3.76287,2657.6,2656.9,2.461]
[1724117882811,3.76287,2657.6,2656.9,4.42393081]
[1724117883082,3.76287,2657.6,2656.9,4.42393429]
[1724117883279,5.1420575,2657.6,2656.9,2.461]
[1724117884060,5.1420575,2657.6,2656.9,4.42387597]
[1724117884255,13.791625,2657.8,2656.9,4.42387597]
[1724117884456,13.791625,2657.8,2657.0,1.30854933]
[1724117884670,3.76265,2657.7,2656.9,2.87552157]
[1724117884850,3.0,2657.6,2657.0,1.30852218]
[1724117885052,3.0,2657.8,2657.1,3.82354496]
[1724117885252,7.52493,2657.9,2657.1,2.5150719]
[1724117885493,3.76277,2657.7,2657.1,0.13397861]
[1724117885705,3.76293,2657.5,2657.1,0.13397861]
[1724117886201,3.76293,2657.5,2656.9,2.461]
[1724117886827,3.76272,2657.7,2657.0,0.13408785]
[1724117887119,3.76279,2657.6,2657.0,0.13408785]
[1724117887317,3.76272,2657.7,2657.0,0.13408785]
[1724117887467,7.52548,2657.7,2657.0,0.13408785]
[1724117887674,3.76272,2657.7,2657.0,0.13408785]
[1724117887874,3.76272,2657.7,2657.0,2.51715423]
[1724117888470,3.76272,2657.7,2657.0,2.51715908]
[1724117888683,3.76272,2657.7,2657.0,0.55435961]
[1724117888885,3.0,2657.8,2657.0,2.51719081]
[1724117889277,6.76255,2657.8,2657.1,1.30849767]
[1724117889498,6.76255,2657.8,2657.2,0.13397996]
[1724117890021,3.76301,2657.5,2657.2,0.13397996]
[1724117890315,7.52602,2657.5,2656.9,4.42373939]
[1724117890515,3.76309,2657.4,2657.3,0.13392602]
[1724117890686,3.76322,2657.3,2656.7,1.19868433]
[1724117890886,3.76351,2657.1,2656.7,1.96299865]
[1724117891196,3.76351,2657.1,2656.8,0.13419576]
[1724117891389,3.76322,2657.3,2656.8,0.13419576]
[1724117891584,7.52652,2657.3,2656.6,4.29645799]
[1724117891833,3.76322,2657.3,2656.9,0.13414181]
[1724117891976,3.76322,2657.3,2656.7,0.54951423]
[1724117892180,3.76322,2657.3,2657.0,0.13408785]
[1724117892389,3.76322,2657.3,2656.7,0.54951423]
[1724117892578,3.76322,2657.3,2657.1,0.13403391]
[1724117892785,3.76322,2657.3,2656.6,4.29650911]
[1724117893010,3.76322,2657.3,2656.6,2.88291934]
[1724117893210,3.76322,2657.3,2656.7,0.13424972]
[1724117893893,6.20108,2657.5,2656.7,0.13424972]
[1724117894091,6.76314,2657.4,2656.7,0.13424972]
[1724117894410,6.76308,2657.4,2656.7,0.13424972]
[1724117894580,6.76308,2657.4,2656.7,0.75213708]
[1724117895520,3.0,2657.4,2656.7,2.71513121]
[1724117895695,3.0,2657.4,2656.7,0.75213708]
[1724117896080,3.0,2657.4,2656.7,2.71513121]
[1724117897193,3.0,2657.4,2656.7,2.71511367]
[1724117897394,3.0,2657.4,2656.8,0.63822298]
[1724117897917,3.0,2657.4,2656.9,0.13414181]
[1724117898096,3.0,2657.4,2657.0,2.2697]
[1724117898297,3.0,2657.4,2657.1,0.13403391]
[1724117898984,3.76324,2657.3,2657.1,0.13403391]
[1724117899210,10.668024,2657.2,2657.1,0.13403391]
[1724117899415,3.76372,2657.0,2656.3,7.38]
[1724117899719,3.76399,2656.8,2656.3,7.38]
[1724117900112,7.52803,2656.8,2656.4,0.13480748]
[1724117900307,3.76399,2656.8,2656.4,0.13480748]
[1724117900510,2.633399,2656.8,2656.4,0.13480748]
[1724117900717,7.5287,2656.5,2656.4,0.13480748]
[1724117901123,3.76454,2656.4,2655.7,2.74782275]
[1724117901417,3.76454,2656.4,2655.6,0.41464617]
[1724117901418,3.76435,2656.5,2655.6,1.96362591]
[1724117901636,3.76435,2656.5,2655.5,3.09229684]
[1724117901637,3.76435,2656.5,2655.8,0.13090239]
[1724117901785,3.76435,2656.5,2655.7,0.13095639]
[1724117901986,3.76435,2656.5,2655.9,0.1308484]
[1724117902201,3.76435,2656.5,2655.5,2.3081]
[1724117902498,3.7645,2656.4,2655.6,0.92365481]
[1724117902691,3.7645,2656.4,2655.7,0.13095639]
[1724117903895,2.3399,2656.3,2655.7,0.13095639]
[1724117904101,3.7645,2656.4,2655.7,0.13095639]
[1724117904330,3.7645,2656.4,2655.7,0.46722751]
[1724117904703,3.76467,2656.3,2655.7,0.13095639]
[1724117904902,3.76496,2656.1,2655.7,0.13095639]
[1724117905153,6.25038,2656.0,2655.2,2.4102]
[1724117905331,6.25038,2656.0,2655.8,0.13101692]
[1724117905650,6.25038,2656.0,2654.9,2.4102]
[1724117905651,2.4852,2656.0,2654.9,2.4102]
[1724117905950,3.76571,2655.6,2655.0,0.13144905]
[1724117906157,3.76556,2655.7,2655.0,0.13144905]
[1724117906158,3.76577,2655.5,2655.0,0.13144905]
[1724117906459,3.76577,2655.5,2655.0,0.38561396]
[1724117907330,2.4852,2656.0,2655.0,0.38561396]
[1724117907501,3.76523,2655.9,2655.0,0.38561396]
[1724117907705,3.0,2655.8,2655.0,0.38561396]
[1724117907995,5.4852,2656.0,2655.0,0.38561396]
[1724117908219,0.54852,2655.9,2655.0,0.13144905]
[1724117908541,3.76573,2655.6,2654.6,2.325]
[1724117908699,3.76573,2655.6,2655.1,0.13139502]
[1724117908899,3.76573,2655.6,2654.7,0.55]
[1724117909100,3.76573,2655.6,2654.8,0.41905712]
[1724117909295,3.76592,2655.4,2654.8,0.41905712]
[1724117909733,2.3285,2655.5,2654.8,0.41905712]
[1724117910258,3.76591,2655.4,2654.8,0.13155712]
[1724117910599,3.76607,2655.3,2654.4,0.59017198]
[1724117910804,6.09428,2655.5,2654.9,0.13150308]
[1724117911018,3.0,2655.4,2654.4,0.59017198]
[1724117911225,3.76606,2655.3,2655.0,0.13178004]
[1724117911536,3.76619,2655.2,2654.5,0.3035372]
[1724117911906,3.76606,2655.3,2654.6,0.13272596]
[1724117912100,7.5322,2655.3,2654.6,0.13272596]
[1724117912531,3.76622,2655.2,2654.6,0.13272596]
[1724117912844,3.76636,2655.1,2654.6,0.13272596]
[1724117913434,8.194991,2655.3,2654.6,0.13272596]
[1724117913632,3.76621,2655.2,2654.6,0.13272596]
[1724117913802,3.76635,2655.1,2654.6,0.13272596]
[1724117913996,6.21735,2655.1,2654.6,0.13272596]
[1724117916025,3.76649,2655.0,2654.6,0.13272596]
[1724117916342,1.0646151,2655.1,2654.6,0.13272596]
[1724117916556,6.76626,2655.2,2654.3,2.4452]
[1724117916762,6.76626,2655.2,2654.7,0.13278654]
[1724117916962,3.0,2655.2,2654.3,6.21264]
[1724117917158,3.0,2655.2,2654.8,0.1327325]
[1724117917466,3.0,2655.2,2654.3,2.4452]
[1724117917467,3.76648,2655.0,2654.3,2.4452]
[1724117917634,3.76648,2655.0,2654.9,0.1326912]
[1724117917833,3.76648,2655.0,2654.3,2.4452]
[1724117918140,3.76648,2655.0,2654.4,0.13296143]
[1724117918561,2.3941,2654.9,2654.4,0.13296143]
[1724117919059,6.16073,2654.9,2654.4,0.13296143]
[1724117919259,3.76683,2654.8,2654.4,0.13296143]
[1724117919626,3.76683,2654.8,2654.0,2.86119257]
[1724117919964,3.76704,2654.6,2654.0,2.2705]
[1724117920138,3.76704,2654.6,2654.1,0.13317033]
[1724117920730,6.10592,2654.5,2654.1,0.13317033]
[1724117921260,3.76694,2654.7,2653.6,6.12574]
[1724117921424,3.76694,2654.7,2654.2,0.13311626]
[1724117921630,9.20873,2654.8,2653.6,6.12574]
[1724117921939,9.20873,2654.8,2653.3,3.0]
[1724117921940,5.4419,2654.8,2654.1,2.3573]
[1724117922265,3.0,2654.9,2654.1,2.3573]
[1724117922451,3.0,2654.9,2654.2,0.13311626]
[1724117922968,6.76669,2654.9,2654.2,0.13311626]
[1724117925233,3.76678,2654.8,2654.2,0.13311626]
[1724117925435,3.0,2654.7,2654.2,0.13311626]
[1724117925755,3.76711,2654.6,2654.2,0.13311626]
[1724117926068,4.743578,2654.7,2654.2,0.13311626]
[1724117926373,3.76694,2654.7,2653.8,2.4598]
[1724117926534,6.76676,2654.8,2653.8,2.4598]
[1724117926729,10.53361,2654.8,2653.9,0.1336564]
[1724117926936,6.76676,2654.8,2653.9,1.14664004]
[1724117927369,10.53362,2654.8,2653.9,1.14664004]
[1724117927728,3.76693,2654.7,2653.9,1.14664004]
[1724117928242,6.76676,2654.8,2653.9,0.1336564]
[1724117928243,3.76747,2654.3,2653.9,0.1336564]
[1724117928576,3.76747,2654.3,2653.4,2.4271]
[1724117928772,3.76747,2654.3,2654.0,0.13360232]
[1724117928945,2.3379,2654.6,2653.9,2.4271]
[1724117929143,9.10502,2654.6,2654.1,0.13354825]
[1724117929342,9.10502,2654.6,2654.0,0.37631232]
[1724117929545,9.10502,2654.6,2654.2,0.13349419]
[1724117929736,9.10502,2654.6,2654.1,0.13354825]
[1724117930933,6.76712,2654.6,2654.1,0.13354825]
[1724117931344,3.0,2654.6,2654.1,0.13354825]
[1724117931537,3.0,2654.7,2654.1,0.13354825]
[1724117932076,2.3145,2655.6,2654.2,2.4002]
[1724117932232,2.3145,2655.6,2654.6,2.4002]
[1724117932435,1.509235,2656.2,2655.2,2.4]
[1724117932657,2.3691,2656.3,2655.3,0.55]
[1724117932932,2.3691,2656.3,2655.3,0.68285725]
[1724117932933,3.76487,2656.2,2655.3,0.68285725]
[1724117933267,3.76492,2656.1,2655.4,0.30828573]
[1724117933667,3.76492,2656.1,2655.5,0.13248171]
[1724117934044,3.76523,2655.9,2655.5,0.13248171]
[1724117934439,3.0,2656.0,2654.9,2.3621]
[1724117934440,6.23294,2655.8,2654.9,2.3621]
[1724117934838,3.76566,2655.6,2655.0,0.12818217]
[1724117935157,3.76629,2655.2,2654.3,2.92117482]
[1724117935348,3.76629,2655.2,2655.1,0.12780024]
[1724117935551,3.76634,2655.1,2654.3,2.3621]
[1724117935734,6.23367,2655.3,2654.3,2.3621]
[1724117936135,3.76619,2655.2,2654.4,0.12832229]
[1724117936381,2.4676,2655.3,2654.4,0.12832229]
[1724117936540,2.4676,2655.3,2654.4,0.37736452]
[1724117936870,5.4676,2655.3,2654.4,0.37736452]
[1724117937172,3.76633,2655.2,2654.4,0.37736452]
[1724117937606,3.7666,2655.0,2654.4,0.12832229]
[1724117938037,3.7666,2655.0,2654.0,2.55641]
[1724117938238,3.7666,2655.0,2654.5,0.12826823]
[1724117938457,3.7666,2655.0,2654.0,2.55641]
[1724117938670,3.7666,2655.0,2654.6,0.12821418]
[1724117938976,3.76703,2654.7,2654.0,2.55641]
[1724117939278,3.76687,2654.8,2654.7,0.12816013]
[1724117939571,3.76697,2654.7,2654.0,2.3137]
[1724117939982,3.76719,2654.5,2654.1,0.12879746]
[1724117940276,4.755617,2654.7,2654.1,0.12879746]
[1724117940277,8.522617,2654.7,2654.1,0.12879746]
[1724117940482,4.755617,2654.7,2653.7,2.3137]
[1724117940684,2.3528,2654.9,2654.2,0.1287434]
[1724117940988,3.76651,2655.0,2654.3,2.53278933]
[1724117941139,3.76651,2655.0,2654.3,2.78606826]
[1724117941140,3.0,2654.9,2654.3,2.78606826]
[1724117941471,6.76662,2654.9,2654.3,2.78606826]
[1724117941679,3.0,2654.9,2654.3,2.78606826]
[1724117941843,3.0,2655.0,2654.3,2.78606826]
[1724117942049,2.297,2655.3,2654.3,6.55352826]
[1724117942346,2.297,2655.3,2654.3,2.78606826]
[1724117942547,6.06314,2655.3,2654.3,2.78606826]
[1724117942962,9.82929,2655.3,2654.3,2.78606826]
[1724117943162,3.7662,2655.2,2654.4,0.65536583]
[1724117943472,3.7662,2655.2,2654.5,0.12858122]
[1724117943684,2.84644147,2655.8,2654.6,2.4684]
[1724117943863,6.15084,2655.8,2654.7,4.44527312]
[1724117944047,3.76562,2655.7,2654.8,2.91292731]
[1724117944650,3.76562,2655.7,2654.9,0.12829736]
[1724117945286,6.76562,2655.6,2654.9,0.12829736]
[1724117946151,2.2778,2655.2,2654.9,0.12829736]
[1724117946363,3.0,2655.6,2654.4,2.3409]
[1724117946364,2.2778,2655.5,2654.4,2.3409]
[1724117946572,6.04359,2655.5,2655.0,0.12844204]
[1724117946781,6.76569,2655.6,2654.8,3.76675]
[1724117946782,3.0,2655.6,2654.8,3.76675]
[1724117947082,3.76511,2656.0,2655.1,0.1284007]
[1724117947307,3.76522,2655.9,2654.9,6.01672]
[1724117947481,3.76522,2655.9,2655.0,1.65679173]
[1724117948167,3.76534,2655.8,2655.0,1.65679173]
[1724117949374,6.76511,2656.0,2655.0,1.65679173]
[1724117949561,3.0,2655.9,2655.0,1.65679173]
[1724117949992,3.76534,2655.8,2655.0,1.65679173]
[1724117950398,3.76534,2655.8,2655.1,0.39069917]
[1724117950779,3.76534,2655.8,2655.2,0.12834667]
[1724117951593,7.53077,2655.8,2655.2,0.12834667]
[1724117951799,7.53077,2655.8,2655.0,0.55]
[1724117951965,3.76534,2655.8,2655.3,0.12829265]
[1724117952165,0.676534,2655.7,2655.0,0.55]
[1724117952367,3.76534,2655.8,2655.4,0.12823863]
[1724117952683,3.76534,2655.8,2655.5,0.12818462]
[1724117952881,3.76534,2655.8,2655.0,0.55]
[1724117953079,3.76534,2655.8,2655.1,0.1284007]
[1724117953281,7.53081,2655.8,2655.1,0.1284007]
[1724117953500,4.818421,2655.8,2655.1,0.1284007]
[1724117954272,3.76555,2655.7,2655.1,0.1284007]
[1724117954763,3.76562,2655.6,2655.1,0.1284007]
[1724117955099,6.08846,2655.7,2654.9,2.2502]
[1724117955299,6.08846,2655.7,2655.0,0.12845473]
[1724117955503,7.4791431,2655.7,2655.0,0.12845473]
[1724117955799,3.0,2655.9,2655.0,0.12845473]
[1724117956003,3.0,2656.0,2655.1,9.95701]
[1724117956166,3.0,2656.0,2655.1,6.19075]
[1724117956366,6.11061,2656.3,2655.3,6.19053]
[1724117956572,3.76484,2656.2,2655.3,2.4245]
[1724117956768,6.11055,2656.3,2655.4,0.67807368]
[1724117957289,3.76492,2656.1,2655.4,0.67807368]
[1724117957471,3.76492,2656.1,2655.4,0.12807368]
[1724117957798,3.76506,2656.0,2655.4,0.12807368]
[1724117958507,4.376002,2656.1,2655.4,0.12807368]
[1724117958702,3.76492,2656.1,2655.4,0.12807368]
[1724117960800,3.76484,2656.2,2655.4,0.12807368]
[1724117961004,3.0,2656.1,2655.4,0.12807368]
[1724117961169,3.0,2656.1,2655.5,2.9487]
[1724117961371,6.11283,2656.6,2655.7,6.16418]
[1724117961571,3.0,2656.5,2655.7,2.3987]
[1724117961771,3.0,2656.5,2655.8,0.67762511]
[1724117962003,3.0,2656.7,2655.8,0.67762511]
[1724117962230,3.0,2656.7,2655.8,4.44289511]
[1724117962534,6.76407,2656.7,2655.9,0.68415951]
[1724117962690,6.76407,2656.7,2656.0,0.67751712]
[1724117963071,2.3486,2656.9,2656.0,0.67751712]
[1724117963072,6.11245,2656.9,2656.1,2.47399181]
[1724117963407,6.11245,2656.9,2656.2,0.12740914]
[1724117964010,3.76458,2656.4,2656.2,0.12740914]
[1724117964197,4.141028,2656.4,2656.2,0.12740914]
[1724117964515,3.76457,2656.4,2655.6,2.3987]
[1724117964803,3.76457,2656.4,2655.7,0.12749737]
[1724117968092,6.11289,2656.6,2655.7,0.12749737]
[1724117968480,3.76398,2656.8,2655.9,2.4487]
[1724117968680,3.76398,2656.8,2656.0,0.12734383]
[1724117968681,3.0,2656.7,2656.0,0.12734383]
[1724117969297,5.2767,2656.9,2656.0,0.12734383]
[1724117969511,3.76394,2656.8,2656.0,0.12734383]
[1724117969776,3.0,2656.7,2656.0,0.20263587]
[1724117969991,5.2767,2656.9,2656.0,0.12734383]
[1724117970221,9.04052,2656.9,2656.1,0.55]
[1724117970400,9.04052,2656.9,2656.1,1.61562838]
[1724117970605,9.04052,2656.9,2656.2,2.62043586]
[1724117970606,3.0,2656.9,2656.2,2.62043586]
[1724117971589,3.76376,2657.0,2656.2,2.62043586]
[1724117971789,6.76378,2656.9,2656.2,2.62043586]
[1724117971993,3.76378,2656.9,2656.3,0.42360642]
[1724117972196,3.0,2656.8,2656.3,0.42360642]
[1724117972512,3.0,2656.8,2656.4,0.12648543]
[1724117973209,3.764,2656.8,2656.4,0.12648543]
[1724117973712,3.764,2656.8,2656.2,2.4932]
[1724117973876,3.76421,2656.6,2656.3,0.1265394]
[1724117974084,3.76449,2656.4,2655.9,2.4264]
[1724117974276,3.76449,2656.4,2655.3,6.76596]
[1724117974277,3.76449,2656.4,2656.0,0.12668024]
[1724117974479,3.76449,2656.4,2655.4,9.19231]
[1724117974699,3.76449,2656.4,2655.5,0.12695024]
[1724117974937,3.76449,2656.4,2655.5,1.43547026]
[1724117975241,3.057,2656.9,2655.7,3.76541]
[1724117975242,3.76414,2656.7,2655.7,3.76541]
[1724117975446,3.76414,2656.7,2655.6,6.20181]
[1724117975599,3.76435,2656.5,2655.8,0.12678823]
[1724117975912,3.76414,2656.7,2655.9,0.12673423]
[1724117976114,4.376444,2656.7,2655.6,2.4362]
[1724117976314,4.376444,2656.7,2655.7,0.67684223]
[1724117976517,6.12274,2656.9,2655.8,2.4815]
[1724117976820,6.764,2656.8,2655.9,0.12673423]
[1724117977143,6.76393,2656.8,2655.9,0.12673423]
[1724117977715,3.76411,2656.7,2655.9,0.12673423]
[1724117978223,7.5283,2656.7,2655.9,0.12673423]
[1724117978381,8.07364758,2656.7,2655.9,0.12673423]
[1724117978795,4.30949758,2656.7,2655.9,0.12673423]
[1724117979012,3.76411,2656.7,2655.9,0.12673423]
[1724117982516,7.52828,2656.7,2655.9,0.12673423]
[1724117983040,3.76411,2656.7,2655.9,0.12673423]
[1724117984149,6.22919,2656.6,2655.9,0.12673423]
[1724117985335,3.76458,2656.4,2655.9,0.12673423]
[1724117985536,3.76486,2656.2,2655.9,0.12673423]
[1724117985717,0.376458,2656.3,2655.6,2.2613]
[1724117986024,3.76465,2656.3,2655.7,0.1270028]
[1724117986228,3.76457,2656.4,2655.7,0.1270028]
[1724117987645,6.2292,2656.6,2655.7,0.1270028]
[1724117987809,6.2292,2656.6,2655.9,2.3195]
[1724117987810,3.7643,2656.6,2655.9,2.3195]
[1724117988015,6.764,2656.8,2655.9,2.61915028]
[1724117988016,10.52806,2656.8,2655.9,2.61915028]
[1724117988216,3.7642,2656.7,2656.0,0.12689575]
[1724117988749,3.0,2656.6,2656.0,0.12689575]
[1724117989654,3.7641,2656.7,2656.0,0.12689575]
[1724117989826,3.0,2656.6,2656.0,0.12689575]
[1724117991058,3.76448,2656.5,2656.0,0.12689575]
[1724117992055,7.52894,2656.5,2656.0,0.12689575]
[1724117992222,3.76446,2656.5,2656.0,0.12689575]
[1724117993957,7.52889,2656.5,2656.0,0.12689575]
[1724117994260,3.76444,2656.5,2656.0,0.12689575]
[1724117995428,3.0,2656.6,2656.0,0.12689575]
[1724117995641,3.0,2656.6,2656.0,0.37153533]
[1724117995845,6.76423,2656.6,2656.0,0.37153533]
[1724117996068,3.0,2656.6,2656.0,0.37153533]
[1724117996255,3.76436,2656.5,2656.0,0.37153533]
[1724117996454,3.0,2656.6,2656.0,0.37153533]
[1724117997054,3.0,2656.7,2656.0,0.37153533]
[1724117997366,3.0,2656.7,2656.1,2.3569]
[1724117997679,6.76407,2656.7,2656.2,0.12671591]
[1724117998258,3.76388,2656.9,2656.2,0.12671591]
[1724117998569,3.0,2656.8,2656.2,0.12671591]
[1724118000669,3.0,2656.8,2656.3,2.4073]
[1724118001050,3.0,2656.8,2656.4,0.12654458]
[1724118001252,3.0,2656.8,2656.4,0.37992904]
[1724118001459,3.0,2657.0,2656.4,0.37992904]
[1724118001861,6.76365,2657.0,2656.4,0.37992904]
[1724118002453,3.7638,2656.9,2656.4,0.12654458]
[1724118002656,3.0,2656.8,2656.4,0.12654458]
[1724118003681,3.76386,2656.9,2656.4,0.12654458]
[1724118003902,3.0,2656.8,2656.4,0.12654458]
[1724118005419,3.0,2656.8,2656.4,0.37992904]
[1724118005611,3.0,2657.0,2656.4,0.37992904]
[1724118005986,3.0,2657.0,2656.6,2.2726]
[1724118006184,3.0,2657.0,2656.7,0.12628128]
[1724118006185,3.76366,2657.0,2656.7,0.12628128]
[1724118006418,3.76366,2657.0,2656.3,2.2726]
[1724118006598,3.0,2656.9,2656.8,0.12622732]
[1724118006795,3.76393,2656.8,2656.3,2.2726]
[1724118007127,3.76435,2656.5,2656.4,0.12644319]
[1724118007292,9.7928,2656.5,2656.4,0.12644319]
[1724118007487,9.7928,2656.5,2655.6,2.68726731]
[1724118007488,3.76485,2656.2,2655.6,2.68726731]
[1724118007823,3.76485,2656.2,2655.7,0.12663101]
[1724118008322,3.76463,2656.3,2655.7,0.12663101]
[1724118008516,3.76463,2656.3,2655.7,0.4449738]
[1724118008688,3.76463,2656.3,2655.7,2.40875986]
[1724118008885,9.02853,2656.5,2655.8,3.82293451]
[1724118009090,3.0,2656.4,2655.8,0.55]
[1724118009322,3.0,2656.6,2655.9,6.5642947]
[1724118009522,3.76387,2656.9,2656.1,2.3808]
[1724118009523,3.0,2656.7,2656.1,2.3808]
[1724118009725,3.0,2656.8,2656.2,1.30895337]
[1724118009883,6.76366,2657.0,2656.3,1.3088771]
[1724118010220,6.76366,2657.0,2656.4,0.12625308]
[1724118010650,6.76366,2657.0,2656.2,1.96334068]
[1724118010851,6.76366,2657.0,2656.5,2.50699911]
[1724118010852,3.0,2657.0,2656.5,2.50699911]
[1724118011052,3.0,2657.0,2656.5,2.3808]
[1724118011253,3.0,2657.0,2656.6,0.12614514]
[1724118011756,6.76367,2657.0,2656.6,0.12614514]
[1724118012554,3.76385,2656.9,2656.6,0.12614514]
[1724118012750,6.76393,2656.8,2656.2,2.386]
[1724118013050,3.0,2656.8,2656.3,0.67630706]
[1724118014159,6.76364,2657.0,2656.3,0.67630706]
[1724118014520,6.76364,2657.0,2656.3,2.63959407]
[1724118014748,6.76364,2657.0,2656.3,0.67630706]
[1724118014749,3.76379,2656.9,2656.3,0.67630706]
[1724118014934,3.0,2656.8,2656.3,0.67630706]
[1724118015266,3.0,2656.8,2656.3,1.12439011]
[1724118015856,3.0,2657.0,2656.4,2.386]
[1724118016065,3.25355368,2658.0,2656.4,2.386]
[1724118016066,3.76273,2657.7,2656.6,3.76418]
[1724118016264,9.83158,2657.9,2656.9,2.386]
[1724118016467,9.83158,2657.9,2656.8,3.76389]
[1724118016468,3.76251,2657.8,2657.0,1.164989]
[1724118016640,3.76274,2657.7,2657.1,2.386]
[1724118016970,3.76302,2657.5,2657.2,0.12582141]
[1724118017523,3.763,2657.5,2657.2,0.12582141]
[1724118017960,3.76266,2657.7,2657.2,0.12582141]
[1724118018345,6.06911,2657.9,2657.2,0.12582141]
[1724118018559,3.0,2657.8,2657.2,0.37700355]
[1724118018759,6.76252,2657.8,2657.2,0.37700355]
[1724118019262,3.0,2657.8,2657.2,0.37700355]
[1724118019863,3.0,2658.0,2657.3,0.55]
[1724118020028,3.0,2658.0,2657.4,2.3959]
[1724118020228,3.0,2658.0,2657.4,2.52161353]
[1724118020524,3.0,2658.0,2657.4,2.8538931]
[1724118020725,6.76225,2658.0,2657.4,2.52161353]
[1724118021231,3.0,2658.0,2657.4,2.52161353]
[1724118023830,3.0,2658.0,2657.5,0.55]
[1724118024231,3.0,2658.0,2657.6,0.12527207]
[1724118027665,6.7623,2658.0,2657.6,0.12527207]
[1724118027870,3.0,2658.0,2657.6,0.12527207]
[1724118029279,3.0,2658.0,2657.7,0.55]
[1724118029480,6.76197,2658.2,2657.7,0.55]
[1724118029694,6.76197,2658.2,2657.8,0.12480529]
[1724118030146,6.76197,2658.2,2657.7,0.55]
[1724118030347,6.76197,2658.2,2657.9,0.12475137]
[1724118030571,6.76197,2658.2,2657.8,0.12480529]
[1724118030771,6.76197,2658.2,2658.0,0.12469746]
[1724118030979,6.76197,2658.2,2657.7,0.55]
[1724118031284,2.4858,2658.5,2657.9,2.3676]
[1724118031487,3.76153,2658.5,2657.9,2.67184053]
[1724118031786,3.76153,2658.5,2658.0,0.1246468]
[1724118031984,3.76153,2658.5,2658.0,0.16336753]
[1724118032883,3.76146,2658.6,2658.0,0.16336753]
[1724118032884,3.76169,2658.4,2658.0,0.16336753]
[1724118033465,3.76146,2658.6,2658.0,0.16336753]
[1724118033664,3.0,2658.5,2658.0,0.16336753]
[1724118033864,6.76164,2658.5,2658.0,0.44688834]
[1724118034059,3.0,2658.5,2658.0,0.44688834]
[1724118034272,3.76146,2658.6,2658.1,0.55]
[1724118034475,3.76114,2658.8,2658.1,0.55]
[1724118034677,3.76085,2659.0,2658.2,2.7229262]
[1724118034974,3.76085,2659.0,2658.3,0.87729262]
[1724118034975,3.76096,2658.9,2658.3,0.87729262]
[1724118035360,3.76096,2658.9,2658.4,0.16248356]
[1724118035715,3.76112,2658.8,2658.4,0.16248356]
[1724118035874,3.76085,2659.0,2658.4,0.16248356]
[1724118036081,2.4596,2659.1,2658.5,0.55]
[1724118036259,3.76059,2659.2,2658.5,0.71242822]
[1724118036595,3.76059,2659.2,2658.6,2.3394]
[1724118036795,3.76067,2659.1,2658.7,0.16221629]
[1724118037308,3.76059,2659.2,2658.7,0.16221629]
[1724118037460,3.76059,2659.2,2658.8,0.55]
[1724118037661,7.52121,2659.2,2658.8,0.55]
[1724118037893,3.7609,2659.0,2658.7,0.16221629]
[1724118038117,3.76133,2658.7,2658.1,2.4533]
[1724118038423,3.76139,2658.6,2658.1,2.4533]
[1724118038569,3.76133,2658.7,2658.1,2.4533]
[1724118038966,6.18343,2658.9,2658.1,2.4533]
[1724118039271,3.0,2658.8,2658.1,2.4533]
[1724118039464,3.0,2658.8,2658.2,0.79533]
[1724118040096,3.0,2659.0,2658.2,0.79533]
[1724118040695,6.76084,2659.0,2658.2,0.79533]
[1724118044988,3.0,2659.0,2658.3,2.3717]
[1724118045333,3.0,2659.0,2658.4,0.866703]
[1724118045927,3.76048,2659.3,2658.5,2.4445]
[1724118046129,3.0,2659.2,2658.7,2.4445]
[1724118046295,3.0,2659.3,2658.7,3.120099]
[1724118046482,10.52092,2659.3,2658.8,0.55]
[1724118046681,6.76045,2659.3,2658.8,0.55]
[1724118048673,3.76053,2659.2,2658.8,0.55]
[1724118049024,3.76053,2659.2,2658.6,0.55]
[1724118050079,3.0,2659.3,2658.7,0.15661302]
[1724118050264,6.7604,2659.3,2658.8,0.55]
[1724118050789,6.7604,2659.3,2658.9,0.15650655]
[1724118050934,8.038215,2659.3,2658.9,0.15650655]
[1724118053349,8.038215,2659.3,2658.8,0.55]
[1724118053567,8.038215,2659.3,2659.0,0.15645123]
[1724118053739,8.038215,2659.3,2658.9,0.15650655]
[1724118053940,8.038215,2659.3,2658.6,0.55]
[1724118054141,6.7604,2659.3,2659.0,0.15645123]
[1724118054351,6.7604,2659.3,2658.6,0.55]
[1724118054562,3.0,2659.3,2659.1,0.1563959]
[1724118054894,6.76045,2659.3,2659.2,0.15634058]
[1724118055242,6.76045,2659.3,2658.6,0.55]
[1724118055438,6.76045,2659.3,2658.7,0.44860722]